Cogmind - Beta 11.1 @@@ ROGUE MODE // 2022.11.27 @ 04:22:38 Player: dankcaster889 Result: Destroyed by G-50 Soldier with Heavy Laser Performance ------------- Evolutions (2) 1000 Regions Visited (4) 800 Robots Destroyed (33) 165 Value Destroyed (767) 767 Prototype IDs (1) 20 Alien Tech Used (0) 0 Bonus (-8) -8 TOTAL SCORE: 2744 Bonus ------- Friendly Fire -8 Cogmind --------- Core Integrity 0/550 Matter 152/300 Energy 100/100 System Corruption 0% Temperature Cool (18) Movement Core (350) Ox6 Location -8/Materials Parts ------- > --- POWER (1) -------- (None) > --- PROPULSION (3) --- (None) > --- UTILITY (3) ------ Disposable Heat Sink Large Storage Unit > --- WEAPON (4) ------- (None) > --- INVENTORY (15) --- Improved Ion Engine Small Storage Unit Small Matter Pod (50) Terrain Scanner Mining Laser Peak State ------------ > --- POWER ------------ Improved Ion Engine > --- PROPULSION ------- Compact Wheel Flight Unit > --- UTILITY ---------- Disposable Heat Sink Large Storage Unit Medium Armor Plating > --- WEAPON ----------- Light Assault Rifle Light Assault Rifle Heavy Assault Rifle Katana > --- INVENTORY -------- Improved Ion Engine Flight Unit Small Storage Unit Small Matter Pod Terrain Scanner Mining Laser [Rating: 16] Favorites ----------- Power Improved Ion Engine Engine Improved Ion Engine Propulsion Flight Unit Treads Light Treads Leg Improved Aluminum Leg Wheel Wheel Hover Unit Hover Unit Flight Unit Flight Unit Utility Large Storage Unit Device Disposable Heat Sink Storage Large Storage Unit Processor Signal Interpreter Protection Medium Armor Plating Weapon Katana Energy Gun Improved EM Shotgun Ballistic Gun Assault Rifle Ballistic Cannon Light Cannon Launcher Mini Grenade Launcher Special Weapon Plasma Cutter Slashing Weapon Katana Build | -11 -10 -9 -9 -8 ------- Run | Scr Mat Mat Min Mat Slots Evolved 4 | . . 2 . 2 Power . | . . . . . Propulsion 1 | . . . . 1 Utility 1 | . . 1 . . Weapon 2 | . . 1 . 1 Parts Attached 45 | 6 14 10 7 8 Power 4 | 1 1 2 . . Engine 4 | 1 1 2 . . Core . | . . . . . Reactor . | . . . . . Propulsion 14 | 2 4 2 5 1 Treads 3 | 2 . 1 . . Leg 3 | . 2 1 . . Wheel 4 | . 1 . 3 . Hover 1 | . 1 . . . Flight 3 | . . . 2 1 Utility 8 | 1 5 2 . . Device 2 | . 1 1 . . Storage 3 | 1 2 . . . Processor 1 | . 1 . . . Hackware . | . . . . . Protection 2 | . 1 1 . . Artifact . | . . . . . Weapon 19 | 2 4 4 2 7 Energy Gun 1 | . . 1 . . Energy Cannon . | . . . . . Ballistic Gun 13 | 2 1 2 2 6 Ballistic Cannon 1 | . 1 . . . Launcher 1 | . 1 . . . Special Weapon 2 | . 1 . . 1 Impact Weapon . | . . . . . Slashing Weapon 1 | . . 1 . . Piercing Weapon . | . . . . . Special Melee Weapon . | . . . . . Unidentified Prototypes 1 | . . 1 . . Corrupted Parts 1 | . . 1 . . System Corruption 2 | . . 2 . . Parts Lost 23 | . 7 4 1 11 Power 3 | . 2 . . 1 Propulsion 8 | . 2 2 1 3 Utility 2 | . 1 . . 1 Weapon 10 | . 2 2 . 6 Highest Loss Streak 11 | . 4 2 1 11 To Critical Strikes . | . . . . . Average Slot Usage (%) 75 | . 82 54 82 68 Engine 9 | . 10 4 11 6 Treads 2 | . 5 1 . . Leg 2 | . 6 2 . . Wheel 3 | . 6 . 1 5 Hover 1 | . 4 . . . Flight 3 | . . . 8 6 Device 6 | . 1 7 11 9 Storage 12 | . 15 11 11 9 Processor 3 | . 4 9 . . Protection 5 | . 3 1 11 4 Energy Gun 1 | . . 6 . . Ballistic Gun 12 | . 14 5 15 17 Launcher 1 | . 5 . . . Slashing Weapon 5 | . . 4 11 8 Naked Turns . | . . . . . Heaviest Build 42 | 14 30 40 40 42 Greatest Support 40 | 40 40 20 26 16 Greatest Overweight (x) 13 | . 6 13 13 7 Average Overweight (x) 2 | . 1 5 5 2 Largest Inventory Capacity 15 | 8 15 15 15 15 Average Capacity 13 | 6 10 15 15 15 Most Carried 8 | . 4 4 7 8 Average Carried 3 | . 2 3 4 6 Final Capacity 15 | 8 15 15 15 15 Final Carried 7 | . 4 4 7 5 Class Distribution -------------------- 75% | Mutant 20% | Scavenger-Mutant 3% | Scavenger-Tank Dominant Class ---------------- Mutant | -10/Materials Mutant | -9/Materials Mutant | -9/Mines Scavenger-Tank | -8/Materials Resources | -11 -10 -9 -9 -8 ----------- Run | Scr Mat Mat Min Mat Matter Collected 755 | 65 357 227 90 16 Remotely . | . . . . . Salvage Created 1116 | . 399 383 185 149 Parts 73 | . 25 24 10 14 Haulers Intercepted . | . . . . . Recyclers Shooed . | . . . . . Parts Field Recycled . | . . . . . Retrieved Matter . | . . . . . Parts Self-Destructed . | . . . . . Prevented . | . . . . . Kills | -11 -10 -9 -9 -8 ------- Run | Scr Mat Mat Min Mat Combat Hostiles Destroyed 23 | . 8 6 4 5 Melee 2 | . 1 1 . . Guns 17 | . 3 5 4 5 Cannons 1 | . 1 . . . AOE 3 | . 3 . . . Classes Destroyed 9 | . 4 3 2 . Worker 2 | . . 2 . . Builder 3 | . 1 1 . 1 Tunneler 1 | . . . 1 . Recycler 2 | . 1 . 1 . Watcher 2 | . 2 . . . Swarmer 8 | . . . 4 4 Grunt 13 | . 8 4 . 1 Duelist 1 | . . 1 . . Sentry 1 | . . 1 . . Best Kill Streak 5 | . 3 4 4 5 Combat Bots Only 4 | . 2 2 4 4 Max Kills in Single Turn 2 | . 2 1 1 2 Gunslinging . | . . . . . Exploded 1 | . 1 . . . Melee 1 | . 1 1 . . Uniques/NPCs Destroyed . | . . . . . Combat | -11 -10 -9 -9 -8 -------- Run | Scr Mat Mat Min Mat Damage Taken 2957 | . 892 618 186 1261 Core 1004 | . 244 198 10 552 Absorbed by Shields . | . . . . . Redirected to Shielding 24 | . 24 . . . Core Remaining (%) 50 | 100 2 . 48 . Volleys Fired 102 | . 32 23 16 31 Largest 3 | . 2 2 1 3 Hottest 65 | . 55 65 23 63 Shots Fired 162 | . 53 30 17 62 Gun 144 | . 35 30 17 62 Cannon 9 | . 9 . . . Launcher 8 | . 8 . . . Special 1 | . 1 . . . Kinetic 135 | . 44 12 17 62 Thermal 1 | . 1 . . . Explosive 8 | . 8 . . . Electromagnetic 18 | . . 18 . . Robot Hit Streak 13 | . 4 13 2 8 Robot Miss Streak 5 | . 3 3 4 5 Penetration Max . | . . . . . Secondary Targets 1 | . . 1 . . Max Gunslinging Chain 1 | . . 1 . . Shots Hit Robots 89 | . 27 30 9 23 Core Hits 64 | . 23 17 5 19 Critical Kills . | . . . . . Critical Parts Destroyed . | . . . . . Critical Strikes 1 | . 1 . . . Blast 1 | . 1 . . . Melee Attacks 10 | . . 8 2 . Impact . | . . . . . Slashing 10 | . . 8 2 . Piercing . | . . . . . Sneak Attacks 3 | . . 1 2 . Combat Hostiles . | . . . . . Follow-up Attacks . | . . . . . Damage Inflicted 1951 | . 792 678 218 263 Guns 981 | . 252 368 98 263 Cannons 90 | . 90 . . . Explosions 437 | . 390 47 . . Melee 383 | . . 263 120 . Ramming 60 | . 60 . . . Kinetic 823 | . 342 120 98 263 Thermal 47 | . . 47 . . Explosive 390 | . 390 . . . Electromagnetic 248 | . . 248 . . Impact . | . . . . . Slashing 383 | . . 263 120 . Piercing . | . . . . . Highest Corruption 2 | . 2 2 2 . Average Corruption 2 | . 2 2 2 . Corruption Purged . | . . . . . Corruption Blocked . | . . . . . Effects 28 | . 7 4 17 . Message Errors 10 | . 2 2 6 . Matter Fused 4 | . . 1 3 . Heat Flow Errors 5 | . 2 . 3 . Energy Discharges 4 | . 1 1 2 . Data Loss (minor) 2 | . 1 . 1 . Data Loss (major) 2 | . 1 . 1 . Misfires 1 | . . . 1 . Overload Shots . | . . . . . Overflow Damage 67 | . . 2 65 . Projectiles . | . . . . . Explosions . | . . . . . Melee 67 | . . 2 65 . Knockbacks 4 | . 4 . . . Impact 2 | . 2 . . . Kinetic 2 | . 2 . . . Secondary . | . . . . . Self-Inflicted Damage 189 | . 149 40 . . Shots 4 | . 3 1 . . Rammed 6 | . 6 . . . Targets Rammed 27 | . 27 . . . Kicked 21 | . 21 . . . Crushed . | . . . . . Highest Temperature 207 | . 207 28 172 142 Average Temperature 51 | . 57 15 74 51 Received Heat Transfer 1161 | . 417 213 . 531 Siege Activations . | . . . . . Robots Corrupted . | . . . . . Combat Hostiles . | . . . . . Parts Fried . | . . . . . Impact Corruptions . | . . . . . Robots Melted . | . . . . . Combat Hostiles . | . . . . . Parts Melted . | . . . . . Heat Transferred 100 | . . 100 . . Parts Sabotaged . | . . . . . Parts Stolen . | . . . . . Parts Stripped . | . . . . . Power Chain Reactions 2 | . . 2 . . Missiles Intercepted . | . . . . . Alert | -11 -10 -9 -9 -8 ------- Run | Scr Mat Mat Min Mat Peak Influence 229 | . 229 148 100 96 Initial 53 | . . 24 53 . Average 58 | . 73 56 48 60 Maximum Alert Level 1 | . 1 . . . Low Security (%) 96 | 100 90 100 100 100 Level 1 3 | . 9 . . . Level 2 . | . . . . . Level 3 . | . . . . . Level 4 . | . . . . . Level 5 . | . . . . . High Security . | . . . . . Max Security . | . . . . . Squads Dispatched 2 | . 1 1 . . Investigation . | . . . . . Extermination . | . . . . . Reinforcement 2 | . 1 1 . . Assault . | . . . . . Garrison . | . . . . . Intercept . | . . . . . Searches Triggered . | . . . . . Construction Impeded . | . . . . . Haulers Reinforced . | . . . . . Active Scanning Responses . | . . . . . Cargo Convoy Interrupts . | . . . . . Stealth | -11 -10 -9 -9 -8 --------- Run | Scr Mat Mat Min Mat Distress Signals 3 | . 1 1 . 1 Communications Jammed . | . . . . . Distress Signals . | . . . . . Times Spotted 37 | . 14 10 4 9 Peak Tracking Total 5 | . 3 3 4 5 Tactical Retreats 1 | . 1 . . . Traps | -11 -10 -9 -9 -8 ------- Run | Scr Mat Mat Min Mat Traps Triggered 2 | . 2 . . . Indirectly . | . . . . . Trap Hack Attempts . | . . . . . Triggered . | . . . . . Disarmed . | . . . . . Reprogrammed . | . . . . . Reused . | . . . . . Traps Extracted . | . . . . . Installed . | . . . . . Triggered . | . . . . . Machines | -11 -10 -9 -9 -8 ---------- Run | Scr Mat Mat Min Mat Machines Disabled 2 | . 1 . 1 . Max in Single Turn 1 | . 1 . 1 . Machines Sabotaged . | . . . . . Garrisons Compromised . | . . . . . Overloaded Fab Kills . | . . . . . Hacking | -11 -10 -9 -9 -8 --------- Run | Scr Mat Mat Min Mat Machines Accessed 2 | . 1 1 . . Terminals 1 | . . 1 . . Fabricators . | . . . . . Repair Stations 1 | . 1 . . . Recycling Units . | . . . . . Scanalyzers . | . . . . . Garrison Access . | . . . . . Total Hacks 3 | . 1 2 . . Successful . | . . . . . Failed 3 | . 1 2 . . Catastrophic . | . . . . . Database Lockouts . | . . . . . Manual . | . . . . . Terminals 2 | . . 2 . . Fabricators . | . . . . . Repair Stations 1 | . 1 . . . Recycling Units . | . . . . . Scanalyzers . | . . . . . Garrison Access . | . . . . . Terminal Hacks . | . . . . . Fabricator Hacks . | . . . . . Repair Station Hacks . | . . . . . Recycling Unit Hacks . | . . . . . Scanalyzer . | . . . . . Garrison Access Hacks . | . . . . . Unauthorized Hacks . | . . . . . Terminals . | . . . . . Fabricators . | . . . . . Repair Stations . | . . . . . Recycling Units . | . . . . . Scanalyzers . | . . . . . Garrison Access . | . . . . . Data Cores Recovered . | . . . . . Used . | . . . . . Hacking Detections 2 | . 1 1 . . Full Trace Events 1 | . . 1 . . Feedback Events . | . . . . . Feedback Blocked . | . . . . . Robot Schematics Acquired . | . . . . . Robots Built . | . . . . . Authchips . | . . . . . Time . | . . . . . Total Robot Build Rating . | . . . . . Part Schematics Acquired . | . . . . . Parts Built . | . . . . . Authchips . | . . . . . Time . | . . . . . Total Part Build Rating . | . . . . . Parts Repaired . | . . . . . Time . | . . . . . Parts Recycled . | . . . . . Recycled Matter . | . . . . . Retrieved Matter . | . . . . . Retrieved Components . | . . . . . Parts Scanalyzed . | . . . . . Part Schematics Acquired . | . . . . . Parts Damaged . | . . . . . Bothacking | -11 -10 -9 -9 -8 ------------ Run | Scr Mat Mat Min Mat Used RIF Installer . | . . . . . Robots Hacked . | . . . . . Non-combat . | . . . . . Combat . | . . . . . Robot Hacks Applied . | . . . . . Relay Couplers Released . | . . . . . Fabnet Peak Effective % . | . . . . . Robots Rewired . | . . . . . Allies Hacked . | . . . . . Hacks Repelled . | . . . . . Allies | -11 -10 -9 -9 -8 -------- Run | Scr Mat Mat Min Mat Total Allies 1 | . . . 1 . Largest Group 1 | . . . 1 . Highest-Rated Group 31 | . . . 31 . Highest-Rated Ally 31 | . . . 31 . Total Orders . | . . . . . Ally Attacks . | . . . . . Total Damage . | . . . . . Kills . | . . . . . Allies Corrupted . | . . . . . Allies Melted . | . . . . . Intel | -11 -10 -9 -9 -8 ------- Run | Scr Mat Mat Min Mat Robot Analysis Total . | . . . . . Derelict Logs Recovered . | . . . . . Drone Launches . | . . . . . Drone Recoveries . | . . . . . Exploration | -11 -10 -9 -9 -8 ------------- Run | Scr Mat Mat Min Mat Turns Passed 2884 | 64 1004 640 1009 167 Spaces Moved 1062 | 37 561 156 259 49 Core 207 | 3 32 96 69 7 Treads 181 | 34 112 35 . . Legs 161 | . 136 25 . . Wheels 285 | . 156 . 88 41 Hover 125 | . 125 . . . Flight 103 | . . . 102 1 Fastest Speed 50 | 50 95 240 105 130 Average Speed 237 | 151 153 357 369 173 Slowest Speed 700 | 160 350 700 700 440 Overloaded Moves . | . . . . . Propulsion Burnouts . | . . . . . Robots Hopped . | . . . . . Cave-ins Triggered . | . . . . . Exploration Rate (%) 19 | 3 51 13 21 9 Regions Visited 4 Branch Regions 1 Pre-discovered Areas . | . . . . . Known Exits Taken 1 | . 1 . . . Unknown Exits Taken 3 | 1 . 1 1 . Scrap Searched . | . . . . . Spaces Dug . | . . . . . Terrain Destroyed 61 | . 51 10 . . Melee . | . . . . . Projectile . | . . . . . AOE 61 | . 51 10 . . Terrain Rammed . | . . . . . Walls Destroyed . | . . . . . Machines Disabled . | . . . . . Actions | -11 -10 -9 -9 -8 --------- Run | Scr Mat Mat Min Mat Total 1262 | 42 645 197 289 89 Wait . | . . . . . Move 1058 | 36 560 155 258 49 Hop . | . . . . . Pick Up 12 | . 6 1 5 . Fast Attach 22 | 6 7 7 2 . Attach 13 | . 4 1 3 5 Detach 6 | . 4 . 1 1 Swap 10 | . 3 2 2 3 Drop 2 | . 2 . . . Fire 102 | . 32 23 16 31 Melee 10 | . . 8 2 . Ram 6 | . 6 . . . Kick 21 | . 21 . . . Crush . | . . . . . Escape Stasis . | . . . . . Rewire . | . . . . . Trap . | . . . . . Miscellaneous . | . . . . . Route ------- -11/Scrapyard -10/Materials (discovered 3 exits: *Mat x2 / [*Min]) -9/Materials -9/Mines -8/Materials History --------- Turn | Location | Event 2 | -11/Scrapyard | Discovered new exit (range 16) 65 | -11/Scrapyard | Entered Materials 308 | -10/Materials | Build established: Mutant 471 | -10/Materials | Core integrity fell below 50% 529 | -10/Materials | Lost 4 parts (2n1u1w) 687 | -10/Materials | Discovered new exit (range 13) 755 | -10/Materials | Discovered new exit (range 14) 915 | -10/Materials | Core integrity fell below 20% 1017 | -10/Materials | Discovered new exit (range 11) 1048 | -10/Materials | Identified exit to Materials 1069 | -10/Materials | Entered another Materials area 1069 | -9/Materials | Evolved 2 slots: Utility x1, Weapon x1 1688 | -9/Materials | Discovered new exit (range 7) 1709 | -9/Materials | Entered Mines 2231 | -9/Mines | Core integrity fell below 50% 2376 | -9/Mines | Discovered new exit (range 15) 2386 | -9/Mines | Received a Mining Laser from a helpful Derelict 2565 | -9/Mines | Build established: Scavenger-Mutant 2718 | -9/Mines | Entered Materials 2718 | -8/Materials | Evolved 2 slots: Propulsion x1, Weapon x1 2857 | -8/Materials | Core integrity fell below 50% 2877 | -8/Materials | Core integrity fell below 20% 2885 | -8/Materials | Destroyed by G-50 Soldier with Heavy Laser Last Messages --------------- 02830_ Critical hit (Burn: +37). 02831_ K-01 Serf collects debris. 02832_ Lgt. Assault Rifle destroyed. 02833_ K-01 Serf collects debris. 02834_ Flight Unit destroyed. 02835_ Hvy. Assault Rifle destroyed. 02835_ G-47 Trooper destroyed. 02836_ K-01 Serf collects debris. 02844_ Imp. Ion Engine destroyed. 02844_ K-01 Serf collects debris. 02848_ R-06 Scavenger collects Particle Gun. 02849_ K-01 Serf collects debris. 02852_ Lgt. Assault Rifle destroyed. 02852_ R-06 Scavenger collects Imp. Heat Sink. 02855_ K-01 Serf collects debris. 02856_ R-06 Scavenger collects Imp. Heat Sink. 02858_ K-01 Serf collects debris. 02859_ R-06 Scavenger collects Aluminum Leg. 02870_ Flight Unit destroyed. 02879_ Katana destroyed. Map ----- +----------------------------------------------------+ | ??????????????????????????????????? | | ??????????????????????????????????? | | ??????????????????????????????????? | | ??????????????????????????????????? | | ??????????????????????????????????? | | ??????????????????????????????????? | | ??????????????????????????????????? | | ??????????????????????????????????? | | ??????????????????????????????????? | | ??????????????????????????????????? | | ??????????????????????????????????? | | ??????????????????????????????????? | | ??????????????????????????????????? | | ??????????????????????????????????? | | ???????????"??????????????????????? | | ?????????? R"?????????????????????? | | ??????????"""?????????????????????? | | ?????????? ?????????????????????? | | ????????###m###???????????????????? | | ????????# #???????????????????? | | ???????## #???????????????????? | | ???????? T +???????????????????? | | ????????# #???????????????????? | | ????????# % #???????????????????? | | ?????#???# %Y#????????????????????? | | ######/??#@[ #????????????????????? | | # ?#g #????????????????????? | | # ?# u #????????????????????? | | # # #???##???????????????? | | ?? # #??? ???????????????? | | ???? + #??" ???????????????? | | # # #?"Y ???????????????? | | # ??# #?"" ???????????????? | | # ????# #?? ???????????????? | | # ??????# #?? ???????????????? | | ?????????# #?? ???????????????? | | ?????????# #?? = ???????????????? | | # ?????# ####+########????????? | | # ??# *%! #????????? | | # # ! #????????? | | ???? + % +????????? | | ?????????# #????????? | | ?????????### =[ #????????? | | ???????????# ###*% #????????? | | ???????????# #?#%= +????????? | | ?????##????#+#?# #######????????? | | ?????? ??? ??# #??????????????? | | ??????? ????# #??????????????? | | ?????????""" ??# #??????????????? | | ????????""""" # #??????????????? | +----------------------------------------------------+ Best States ------------- Heat Dissipation 31 Coolant Potential 50 Energy Generation 12 Energy Capacity 265 Matter Stores 300 Matter Capacity 350 Sight Range 16 Terrain Scan Range 14 Terrain Scan Density 10 Armor Coverage 225 Core Shielding 20 Evasion (%) 55 Recoil Reduction 2 Item Schematics ----------------- None Robot Schematics ------------------ None Fabricated ------------ Nothing Alien Tech Used ----------------- None Achievements -------------- Close Call Fist Fight Let's See Who's Tougher Oops Risk Taker Challenges ------------ None Game ------ Seed SniperImpactMicrothruster Manual? 0 Play Time 00:21:36 Cumulative 2.9 hours Start 2022.11.24 @ 02:54:27 End 2022.11.27 @ 04:22:38 Sessions 3 Manual Loads 0 Difficulty Rogue Special Mode None Game No. 13 Rogue 13 Adventurer 0 Explorer 0 Win Type - Total 0 Types 0/0/0/0/0/0/0/0/0 Lore% 1 Gallery% 6 Achievement% 8 Wizard Run 0 Options --------- ASCII 1 Keyboard 0 Movement Arrows Keybinds 0 Fullscreen 1 Font 12/Terminus Map View 83x54 Tactical HUD 1 Map Filters NONE Filters NONE Steam 1 RUN: 6a8b45d8-72fb-422d-8212-de56c0170ef2